Cogmind - Beta 15 @@@ ROGUE MODE // 2025.05.28 @ 02:15:15 Player: naththebg Result: Destroyed by P-80 Master with Gamma Rifle Performance ------------- Evolutions (9) 4500 Regions Visited (25) 5000 Robots Destroyed (418) 2090 Value Destroyed (21191) 21191 Prototype IDs (41) 820 Alien Tech Used (0) 0 Bonus (17338) 17338 TOTAL SCORE: 50939 Bonus ------- High Alert Combat Kills 3351 Follower Combat Kills 2400 Network Hubs Disabled 200 Met Warlord at Base 500 MAIN.C Attacked Warlord 500 Warlord Defense Kills 4888 Built Enhanced Grunts 300 Met R17 at Cetus 500 Met R17 at Research 2000 Met Warlord at Research 2000 Met Warlord at Command 2000 Friendly Fire -1301 Cogmind --------- Core Integrity 0/1600 Matter 206/300 Energy 189/500 System Corruption 34% Temperature Cool (18) Movement Core (950) Ox18 Location -1/Command Parts ------- > --- POWER (3) -------- (None) > --- PROPULSION (6) --- (None) > --- UTILITY (11) ----- High-capacity Storage Unit Improved Energy Well Experimental Targeting Computer Advanced Launcher Guidance Computer Launcher Loader > --- WEAPON (5) ------- (None) > --- INVENTORY (20) --- Improved Quantum Reactor Improved Quantum Reactor Biometal Leg Advanced Power Amplifier Advanced Coolant Injector Advanced Sensor Array Advanced Phase Shifter Improved Force Field Enhanced Quantum Rifle Enhanced Quantum Rifle Enhanced Quantum Rifle Enhanced Nova Cannon Enhanced Hardcell Cannon Peak State ------------ > --- POWER ------------ Improved Quantum Reactor Vortex Chain Reactor > --- PROPULSION ------- Biometal Leg Biometal Leg Improved Thunder Leg Improved Thunder Leg Centrium Leg Centrium Leg > --- UTILITY ---------- Advanced Power Amplifier Advanced Heat Sink Advanced Cooling System High-capacity Storage Unit Improved Energy Well Experimental Targeting Computer Advanced Reaction Control System Advanced Phase Shifter Advanced Force Field Experimental Hacking Suite Improved System Shield > --- WEAPON ----------- Precision Phase Gun Enhanced Quantum Rifle Enhanced Quantum Rifle Enhanced Quantum Rifle Enhanced Quantum Rifle > --- INVENTORY -------- Improved Quantum Reactor Improved Quantum Reactor Improved Quantum Reactor Centrium Leg Centrium Leg Advanced Heat Sink Advanced Coolant Injector Advanced Launcher Guidance Computer Launcher Loader Advanced Reaction Control System Experimental Power Shielding Hacking Suite Enhanced Nova Cannon Enhanced Nova Cannon Enhanced Nova Cannon Enhanced Hardcell Cannon Vortex Catalyst Activator RU-N14's Throwing Claymores v3 [Rating: 209] Favorites ----------- Power Quantum Reactor Engine Cooled Deuterium Engine Power Core Enhanced Nuclear Core Reactor Quantum Reactor Propulsion Medium Treads Treads Medium Treads Leg Improved Thunder Leg Hover Unit Antigrav Array Utility Advanced Heat Sink Device Advanced Heat Sink Storage High-capacity Storage Unit Processor Experimental Targeting Computer Hackware Experimental Hacking Suite Protection Powered Armor Weapon Cooled Particle Cannon Energy Gun Enhanced Quantum Rifle Energy Cannon Cooled Particle Cannon Ballistic Gun Makeshift Shrapnel Gun Ballistic Cannon Flak Cannon Launcher Scatter Rocket Array Special Weapon RU-N14's Throwing Claymores v3 Build | -11 -10 -10 -10 -9 -8 -7 -7 -7 -7 -6 -6 -6 -6 -6 -6 -5 -5 -5 -5 -4 -4 -3 -2 -1 -1 ------- Run | Yrd Mat Min Exi Min Mat Fac Low Low Zio Pro Fac Ext Cet Arc Hub Fac Upp Upp War Pro Fac Res Res Acc Com Slots Evolved 18 | . . . . . 4 2 . . . . 2 . . . . 2 . . . . 2 2 2 2 . Power 2 | . . . . . . . . . . . . . . . . 1 . . . . . . . 1 . Propulsion 4 | . . . . . 1 . . . . . 1 . . . . . . . . . 1 1 . . . Utility 9 | . . . . . 2 1 . . . . 1 . . . . 1 . . . . 1 . 2 1 . Weapon 3 | . . . . . 1 1 . . . . . . . . . . . . . . . 1 . . . Parts Attached 186 | 6 3 3 . 2 12 10 2 2 3 5 14 3 8 . 3 3 2 . 14 3 7 42 7 19 13 Power 18 | 1 1 2 . . 1 1 . . . 1 2 . 1 . 2 1 . . . . 1 2 1 1 . Engine 7 | 1 1 2 . . . 1 . . . 1 1 . . . . . . . . . . . . . . Core 2 | . . . . . 1 . . . . . 1 . . . . . . . . . . . . . . Reactor 9 | . . . . . . . . . . . . . 1 . 2 1 . . . . 1 2 1 1 . Propulsion 33 | 2 . . . . 5 1 1 . 1 . 2 . 1 . 1 . . . . . . 11 . 5 3 Treads 12 | . . . . . 5 1 1 . 1 . 2 . 1 . 1 . . . . . . . . . . Leg 20 | 2 . . . . . . . . . . . . . . . . . . . . . 10 . 5 3 Wheel . | . . . . . . . . . . . . . . . . . . . . . . . . . . Hover 1 | . . . . . . . . . . . . . . . . . . . . . . 1 . . . Flight . | . . . . . . . . . . . . . . . . . . . . . . . . . . Utility 79 | 1 2 . . . 4 4 1 2 2 3 9 1 5 . . 1 1 . 7 1 2 16 2 7 8 Device 44 | . . . . . 3 2 1 1 1 1 6 1 4 . . . 1 . 4 . 2 7 . 6 4 Storage 11 | 1 1 . . . . . . . 1 1 1 . 1 . . . . . . . . 4 1 . . Processor 7 | . 1 . . . . 1 . . . . . . . . . . . . 1 . . 2 . . 2 Hackware 3 | . . . . . . . . . . . . . . . . . . . . . . 1 . 1 1 Protection 14 | . . . . . 1 1 . 1 . 1 2 . . . . 1 . . 2 1 . 2 1 . 1 Artifact . | . . . . . . . . . . . . . . . . . . . . . . . . . . Weapon 56 | 2 . 1 . 2 2 4 . . . 1 1 2 1 . . 1 1 . 7 2 4 13 4 6 2 Energy Gun 20 | 2 . 1 . . . . . . . . . . . . . . . . 3 . . 9 3 2 . Energy Cannon 15 | . . . . . . 4 . . . . 1 1 1 . . . 1 . 2 . . 1 1 3 . Ballistic Gun 5 | . . . . 2 1 . . . . . . . . . . . . . . . . 2 . . . Ballistic Cannon 5 | . . . . . 1 . . . . . . . . . . . . . . . 2 1 . 1 . Launcher 6 | . . . . . . . . . . 1 . 1 . . . 1 . . 1 . . . . . 2 Special Weapon 5 | . . . . . . . . . . . . . . . . . . . 1 2 2 . . . . Impact Weapon . | . . . . . . . . . . . . . . . . . . . . . . . . . . Slashing Weapon . | . . . . . . . . . . . . . . . . . . . . . . . . . . Piercing Weapon . | . . . . . . . . . . . . . . . . . . . . . . . . . . Special Melee Weapon . | . . . . . . . . . . . . . . . . . . . . . . . . . . Unidentified Prototypes 30 | . . . . . . 2 . . 1 . 4 . 3 . . 1 . . 9 . . 7 3 . . Corrupted Parts 3 | . . . . . . . . . . . . . . . 3 . . . . . . . . . . System Corruption 15 | . . . . . . . . . . . . . . . 15 . . . . . . . . . . Parts Lost 53 | . . 1 . . . 4 . . . 2 2 3 1 . 1 1 1 . 5 3 4 2 1 4 18 Power 6 | . . 1 . . . 1 . . . . . . . . . . . . . 1 1 . . . 2 Propulsion 10 | . . . . . . 1 . . . 1 . 1 . . . . . . . 1 . 1 . . 5 Utility 20 | . . . . . . 1 . . . 1 . 1 1 . 1 . . . 2 1 2 1 . 3 6 Weapon 17 | . . . . . . 1 . . . . 2 1 . . . 1 1 . 3 . 1 . 1 1 5 Highest Loss Streak 18 | . . 1 . . . 4 . . . 1 1 2 1 . 1 1 1 . 3 2 2 1 1 1 18 To Critical Strikes 2 | . . 1 . . . . . . . . . . . . . . . . . . . . 1 . . Average Backups 14 | 3 7 9 10 10 9 9 9 10 10 15 19 19 18 19 19 18 18 18 18 15 14 3 14 17 17 Power 1 | . 1 1 1 1 1 1 1 1 1 1 2 3 3 4 4 2 2 2 1 1 1 . 2 3 2 Propulsion 1 | 1 3 3 3 3 2 2 2 2 2 2 1 1 1 2 2 2 2 2 1 . . . 3 2 2 Utility 6 | . 1 2 2 3 3 3 4 4 4 5 9 10 10 10 10 9 10 10 10 8 7 1 3 5 6 Weapon 3 | . 1 3 3 3 1 2 2 2 3 5 5 3 3 3 3 3 3 3 5 6 5 2 4 5 6 Tool/Special . | . . . . . . . . . . . . . . . . . . . . . . . . . . Unused Backups 41 | . 1 . 1 . 3 2 . 1 . . 3 . 4 1 1 1 . . 4 . 4 . 6 1 8 Power 7 | . . . . . . . . . . . . . 2 . . 1 . . . . . . 2 . 2 Propulsion 6 | . 1 . 1 . 1 . . . . . 1 . . . 1 . . . . . . . . 1 . Utility 17 | . . . . . . 1 . 1 . . . . 2 1 . . . . 2 . 4 . 2 . 4 Weapon 10 | . . . . . 2 1 . . . . 2 . . . . . . . 1 . . . 2 . 2 Tool/Special 1 | . . . . . . . . . . . . . . . . . . . 1 . . . . . . Average Slot Usage (%) 92 | . 96 99 100 100 97 99 100 100 100 99 99 99 96 93 92 87 88 88 86 54 44 80 93 95 90 Engine 2 | . 14 13 14 14 1 6 7 7 7 7 1 . . . . . . . . . . . . . . Core 1 | . . . . . 7 . . . . . 4 6 3 . . . . . . . . . . . . Reactor 3 | . . . . . . . . . . . . . 2 6 6 11 11 11 11 8 4 3 4 8 7 Treads 14 | . . . . . 24 22 23 23 23 22 26 25 23 20 19 11 11 11 11 9 5 . . . . Leg 6 | . 28 28 28 28 2 . . . . . . . . . . . . . . . . 21 26 24 21 Device 19 | . . . . . 16 22 22 23 23 16 20 20 25 26 25 28 29 29 25 11 15 11 16 22 22 Storage 6 | . 14 14 14 14 9 7 7 7 7 7 6 6 6 6 6 5 5 5 5 5 4 3 8 8 8 Processor 2 | . 11 14 14 14 2 . . . . . . . . . . . . . 2 5 5 4 4 4 4 Protection 7 | . . . . . 6 7 7 7 7 13 12 12 6 6 5 4 5 5 5 7 5 8 7 3 3 Energy Gun 5 | . 28 28 28 21 . . . . . . . . . . . . . . 2 . . 18 20 18 11 Energy Cannon 16 | . . . . . . 23 30 30 30 28 25 25 25 26 26 22 22 23 18 . . . . . 7 Ballistic Gun 1 | . . . . 6 23 4 . . . . . . . . . . . . . . . . . . . Peak Build Rating 209 | 6 8 10 10 14 36 52 52 53 60 58 78 78 99 98 105 127 124 123 142 111 90 160 182 209 208 Average Rating 93 | 4 7 8 10 11 31 47 51 52 55 56 67 73 81 97 97 123 119 122 126 94 78 125 172 203 202 On Entrance 72 | . 6 8 10 10 14 36 51 52 53 58 52 74 71 97 98 101 124 122 123 100 70 44 153 181 181 Naked Turns . | . . . . . . . . . . . . . . . . . . . . . . . . . . Heaviest Build 181 | 10 17 17 17 20 40 62 62 62 92 102 111 111 118 118 118 127 126 126 157 120 87 125 144 181 180 Greatest Support 180 | 20 20 20 20 20 84 84 76 76 84 84 116 116 140 140 160 160 160 160 160 160 80 165 165 172 180 Greatest Overweight (x) 3 | . . . . . . . . . 1 1 1 1 1 . . . . . . . 1 3 . 1 1 Average Overweight (x) . | . . . . . . . . . . 1 . . . . . . . . . . . . . . . Largest Inventory Capacity 20 | 8 10 10 10 10 10 10 10 10 20 20 20 20 20 20 20 20 20 20 20 20 20 20 20 20 20 Average Capacity 16 | 6 9 10 10 10 10 10 10 10 16 20 20 20 20 20 20 20 20 20 20 20 18 5 20 20 20 Most Carried 20 | 6 10 10 10 10 10 10 10 10 15 16 20 20 20 20 20 20 20 20 20 20 20 10 20 20 20 Average Carried 14 | 3 7 9 9 9 9 9 9 9 10 15 19 19 18 19 19 19 19 19 19 18 17 5 16 19 19 Final Capacity 20 | 8 10 10 10 10 10 10 10 10 20 20 20 20 20 20 20 20 20 20 20 20 5 20 20 20 20 Final Carried 20 | 6 10 10 10 10 10 10 10 10 15 15 19 19 20 20 19 20 19 20 20 18 5 10 20 18 13 Class Distribution -------------------- 33% | Scavenger-Tank 22% | Tank 21% | Gunner 9% | Mutant 9% | Commander-Tank 3% | Hacker-Tank Dominant Class ---------------- Mutant | -10/Materials Mutant | -10/Mines Mutant | -10/Exiles Mutant | -9/Mines Tank | -8/Materials Gunner | -7/Factory Gunner | -7/Lower Caves Gunner | -7/Lower Caves Gunner | -7/Zion Tank | -6/Proximity Caves Tank | -6/Factory Commander-Tank | -6/Extension Commander-Tank | -6/Cetus Commander-Tank | -6/Archives Commander-Tank | -6/Hub_04(d) Scavenger-Tank | -5/Factory Scavenger-Tank | -5/Upper Caves Scavenger-Tank | -5/Upper Caves Scavenger-Tank | -5/Warlord Scavenger-Mutant | -4/Proximity Caves Mutant | -4/Factory Scavenger-Tank | -3/Research Scavenger-Tank | -2/Research Hacker-Tank | -1/Access Scavenger-Tank | -1/Command Resources | -11 -10 -10 -10 -9 -8 -7 -7 -7 -7 -6 -6 -6 -6 -6 -6 -5 -5 -5 -5 -4 -4 -3 -2 -1 -1 ----------- Run | Yrd Mat Min Exi Min Mat Fac Low Low Zio Pro Fac Ext Cet Arc Hub Fac Upp Upp War Pro Fac Res Res Acc Com Matter Collected 4784 | 219 63 38 . 35 767 373 38 20 50 111 441 117 244 8 14 261 125 12 354 25 111 752 105 196 305 Remotely . | . . . . . . . . . . . . . . . . . . . . . . . . . . Salvage Created 17882 | . 84 73 . 43 999 618 423 123 . 959 1335 905 169 75 1059 1494 342 71 1342 277 115 1293 992 1688 3403 Parts 676 | . 10 2 . 4 51 29 16 2 . 31 53 43 6 2 29 80 15 1 52 4 2 36 22 74 112 Haulers Intercepted 12 | . . . . . 4 1 . . . . 2 . . . 1 . . . . . 1 3 . . . Recyclers Shooed 3 | . . 1 . . 1 . . . . . . . . . . 1 . . . . . . . . . Parts Field Recycled . | . . . . . . . . . . . . . . . . . . . . . . . . . . Retrieved Matter . | . . . . . . . . . . . . . . . . . . . . . . . . . . Parts Self-Destructed 72 | . . . . . . . 16 1 . 31 . . . . . . 15 8 . 1 . . . . . Prevented . | . . . . . . . . . . . . . . . . . . . . . . . . . . Kills | -11 -10 -10 -10 -9 -8 -7 -7 -7 -7 -6 -6 -6 -6 -6 -6 -5 -5 -5 -5 -4 -4 -3 -2 -1 -1 ------- Run | Yrd Mat Min Exi Min Mat Fac Low Low Zio Pro Fac Ext Cet Arc Hub Fac Upp Upp War Pro Fac Res Res Acc Com Combat Hostiles Destroyed 347 | . 4 5 . 3 22 13 10 3 . 18 18 13 3 1 2 29 6 1 46 17 3 14 13 24 79 Melee 1 | . . . . . . . . 1 . . . . . . . . . . . . . . . . . Guns 80 | . 4 5 . 3 16 7 . . . . . . . . . . . . 2 3 . 7 11 17 5 Cannons 110 | . . . . . 6 6 9 2 . 16 17 13 2 1 1 16 4 1 4 1 1 1 . 2 7 AOE 138 | . . . . . . . . . . . . . . . . 10 2 . 40 13 2 3 . 4 64 Classes Destroyed 26 | . 2 1 . . 6 3 . . . 3 2 1 . . . 1 . . 4 . . 1 . . 2 Worker 18 | . . . . . 3 2 . . . . 2 . . . 4 4 . . . . . . . 1 2 Builder 5 | . . . . . 1 . . . . . . 1 . . 2 . . . . . 1 . . . . Tunneler 3 | . . . . . . . . . . . . . . . . 3 . . . . . . . . . Hauler 12 | . . . . . 4 1 . . . . 2 . . . 1 . . . . . 1 3 . . . Recycler 12 | . . . . . . 1 . . . . . 1 . . 2 1 . . . . . 1 . 2 4 Mechanic 4 | . . . . . . . . . . . 1 . . . . . . . 1 . . . . . 2 Operator 2 | . . . . . . . . . . . . . . . . . . . . . . 1 . 1 . Drone 2 | . . . . . . . . . . 2 . . . . . . . . . . . . . . . Watcher 12 | . . . . . . . . . . . 1 . 2 . 2 . . . . . . . 2 1 4 Swarmer 73 | . 3 2 . 3 3 4 5 . . 1 1 1 . . . 10 . . 6 . . 4 . 7 23 Cutter 5 | . . . . . . . . . . . . . . . . . . . . . . . . . 5 Saboteur 6 | . . . . . . . . . . . . . . . . . . . 5 . . . . . 1 Grunt 115 | . 1 . . . 12 2 3 2 . 8 9 4 . . 1 9 3 1 21 8 . 2 3 2 24 Brawler 11 | . . . . . 1 . . . . 3 . . . . . . . . 3 2 . . 1 . 1 Duelist 12 | . . . . . . 1 1 1 . . . 1 . . . . . . 1 6 . 1 . . . Protector 3 | . . . . . . . . . . 1 . . . . . . . . 2 . . . . . . Sentry 37 | . . . . . 5 3 1 . . 1 4 4 . 1 1 5 . . . 1 . 4 2 2 3 Demolisher 5 | . . . . . . . . . . . . 1 . . . . . . 2 . . 2 . . . Specialist 2 | . . . . . . . . . . . . . . . . . . . 1 . . . . . 1 Hunter 19 | . . . . . 1 . . . . . . . . . . . 2 . 2 . 1 . 3 6 4 Programmer 40 | . . . . . . 3 . . . 1 4 1 . . . 5 1 . . . 2 . . 7 16 Heavy 1 | . . . . . . . . . . . . . . . . . . . . . . . . . 1 Behemoth 2 | . . . . . . . . . . 1 . 1 . . . . . . . . . . . . . Cetus Guard 3 | . . . . . . . . . . . . . 3 . . . . . . . . . . . . Enhanced Grunt 2 | . . . . . . . . . . . . . . . 2 . . . . . . . . . . Striker 4 | . . . . . . . . . . . . . . . . . . . 1 . . 1 2 . . Executioner 4 | . . . . . . . . . . . . . . . . . . . 2 . . . 2 . . Assembled 3 | . . 3 . . . . . . . . . . . . . . . . . . . . . . . Thug 1 | . . . . . . . . . . . . . . . 1 . . . . . . . . . . Savage 1 | . . . . . . . . . . . . . . . 1 . . . . . . . . . . Bouncer 1 | . . . . . . . . . . . . . . . . . . . 1 . . . . . . Guerrilla 1 | . . . . . . . . . . . . . . . 1 . . . . . . . . . . Best Kill Streak 66 | . 3 2 . 3 10 6 4 3 . 7 5 6 2 1 7 8 3 1 24 13 3 6 3 7 66 Combat Bots Only 64 | . 3 2 . 3 6 6 4 3 . 7 5 5 2 1 1 7 3 1 24 13 2 6 3 7 64 Max Kills in Single Turn 18 | . 1 1 . 2 2 2 2 1 . 1 2 1 1 1 10 5 2 1 7 5 3 4 1 5 18 Gunslinging 1 | . . . . 1 . . . . . . . . . . . . . . . . . . . . . Exploded 17 | . . . . . . . . . . . . . . . . 5 2 . 7 5 1 3 . 4 17 Melee 1 | . . . . . . . . 1 . . . . . . . . . . . . . . . . . Uniques/NPCs Destroyed . | . . . . . . . . . . . . . . . . . . . . . . . . . . Combat | -11 -10 -10 -10 -9 -8 -7 -7 -7 -7 -6 -6 -6 -6 -6 -6 -5 -5 -5 -5 -4 -4 -3 -2 -1 -1 -------- Run | Yrd Mat Min Exi Min Mat Fac Low Low Zio Pro Fac Ext Cet Arc Hub Fac Upp Upp War Pro Fac Res Res Acc Com Hostile Shots Fired 1806 | . 7 23 . 10 62 96 47 9 . 79 108 75 20 1 13 70 28 9 91 58 88 110 105 231 466 Missed 650 | . 2 5 . . 18 23 17 4 . 22 43 26 11 1 7 19 6 7 37 17 34 44 32 129 146 Deflected 3 | . . . . . . . . . . . . . . . . . . . . . . . . . 3 Hits 1156 | . 5 18 . 10 44 73 30 5 . 57 65 49 9 . 6 51 22 2 54 41 54 66 73 102 320 Melee 17 | . . . . . . . . . . . . . . . . . . . . 3 1 . 1 . 12 Projectile 1139 | . 5 18 . 10 44 73 30 5 . 57 65 49 9 . 6 51 22 2 54 38 53 66 72 102 308 AOE 12 | . . 1 . . . . . . . . . 3 . . . . . . 3 . . 5 . . . Critical Strikes 48 | . . 2 . . . . . . . 3 2 . 1 . 1 4 . . 1 2 2 1 2 3 24 Part Disruptions 2 | . . . . . . . . . . . . . . . . . . . 1 . . . . . 1 Damage Taken 18722 | . 46 253 . 73 672 806 404 79 . 1146 698 582 130 13 303 861 358 29 1222 891 1111 955 628 1145 6317 Core 2830 | . 14 35 . 7 30 79 50 . . 77 34 21 . . 42 89 . . 136 127 240 164 62 73 1550 Absorbed by Shields 3915 | . . . . . . . . . . . . 183 51 . . . . . . . . 653 656 1193 1179 Reduced by Siege Mode 55 | . . . . . . . . . . . . . . . . 13 33 . 4 5 . . . . . Redirected to Shielding 111 | . . . . . . . . . . . . . . . . . . . . . . 36 25 31 19 Ignored by Resistances 1873 | . . . . . . . . . . . 154 220 84 6 36 133 45 13 202 40 81 206 465 188 . Regen/Repaired (Parts) 525 | . . . . . . . . . . . 170 . . . . . . . 336 . . . 19 . . Core Remaining (%) 83 | 100 . . . 77 94 . . . . 70 . . . . 88 . . . . 64 79 87 95 . . Volleys Fired 550 | . 9 15 . 3 52 30 14 5 1 40 46 40 10 3 16 43 9 1 19 23 13 32 30 39 57 Largest 5 | . 2 2 . 2 3 4 4 4 1 4 4 4 4 4 4 4 4 4 4 1 1 5 5 5 5 Hottest 451 | . 80 80 . 64 84 120 120 120 30 270 360 285 280 280 280 280 273 260 180 60 60 432 451 418 435 Shots Fired 1911 | . 18 30 . 6 156 93 56 20 1 146 164 120 30 12 62 157 29 4 42 23 13 143 146 186 254 Gun 866 | . 18 30 . 6 130 39 . . . . . . . . . . . . 20 15 1 142 144 174 147 Cannon 1004 | . . . . . 26 54 56 20 1 144 164 120 28 12 62 153 27 4 14 . 9 . 2 11 97 Launcher 26 | . . . . . . . . . . 2 . . 2 . . 4 2 . 8 . . . . . 8 Special 15 | . . . . . . . . . . . . . . . . . . . . 8 3 1 . 1 2 Kinetic 229 | . . . . 3 156 59 . . . . . . . . . . . . . . 9 . . 2 . Thermal 1592 | . 18 30 . 3 . 34 56 20 1 144 164 120 28 12 62 153 27 4 1 . . 142 146 183 244 Explosive 39 | . . . . . . . . . . 2 . . 2 . . 4 2 . 8 8 3 1 . 1 8 Electromagnetic . | . . . . . . . . . . . . . . . . . . . . . . . . . . Entropic 51 | . . . . . . . . . . . . . . . . . . . 33 15 1 . . . 2 Robot Hit Streak 39 | . 4 4 . 5 10 11 11 7 . 13 9 11 5 3 6 39 12 3 26 17 10 16 26 17 28 Robot Miss Streak 11 | . 2 5 . 5 7 7 1 3 . 2 4 5 2 1 4 3 1 . 11 2 1 3 2 2 6 Penetration Max . | . . . . . . . . . . . . . . . . . . . . . . . . . . Secondary Targets 7 | . . 1 . 1 . . . . . . . . . . . . . . . . . 1 2 2 . Max Gunslinging Chain 1 | . . 1 . 1 . . . . . . . . . . . . . . . . . 1 1 1 . Shots Hit Robots 1178 | . 9 15 . 4 111 56 34 10 . 92 81 62 17 6 20 112 14 1 26 23 8 105 101 116 155 Core Hits 1045 | . 5 8 . 3 85 43 15 4 . 37 34 34 57 2 26 58 8 1 220 47 12 46 41 56 203 Critical Kills 4 | . . . . . . . . . . . 1 . 1 . 1 . . . . . . . . . 1 Critical Parts Destroyed 4 | . . . . . 1 . . . . . . . . . . . . . . 2 1 . . . . Critical Strikes 32 | . . . . . 1 . . . . . 1 . 1 . 1 . . . 4 2 2 8 6 5 1 Burn 19 | . . . . . . . . . . . . . . . . . . . . . . 8 6 5 . Meltdown 4 | . . . . . . . . . . . 1 . 1 . 1 . . . . . . . . . 1 Destroy 1 | . . . . . 1 . . . . . . . . . . . . . . . . . . . . Sever 1 | . . . . . . . . . . . . . . . . . . . . . 1 . . . . Detonate 3 | . . . . . . . . . . . . . . . . . . . . 2 1 . . . . Sunder 4 | . . . . . . . . . . . . . . . . . . . 4 . . . . . . Melee Attacks . | . . . . . . . . . . . . . . . . . . . . . . . . . . Impact . | . . . . . . . . . . . . . . . . . . . . . . . . . . Slashing . | . . . . . . . . . . . . . . . . . . . . . . . . . . Piercing . | . . . . . . . . . . . . . . . . . . . . . . . . . . Sneak Attacks . | . . . . . . . . . . . . . . . . . . . . . . . . . . Combat Hostiles . | . . . . . . . . . . . . . . . . . . . . . . . . . . Follow-up Attacks . | . . . . . . . . . . . . . . . . . . . . . . . . . . Damage Inflicted 71003 | . 98 190 . 72 2174 1403 976 279 . 2949 2910 2365 1281 201 2369 5072 647 32 7923 5222 1040 3313 2743 4528 23216 Guns 16287 | . 98 168 . 58 1755 552 . . . . . . . . . . . . 617 938 79 2832 2703 3559 2928 Cannons 20706 | . . . . . 401 819 976 270 . 2618 2910 2324 605 201 862 4040 434 32 942 . 216 . 40 86 2930 Explosions 32611 | . . . . . . . . . . 331 . . 676 . 1507 979 213 . 6364 3890 637 418 . 657 16939 Melee . | . . . . . . . . . . . . . . . . . . . . . . . . . . Ramming 786 | . . 22 . 14 18 32 . 9 . . . 41 . . . 53 . . . . 67 17 . 183 330 Kinetic 3284 | . . . . 36 2156 876 . . . . . . . . . . . . . . 216 . . . . Thermal 31853 | . 98 168 . 22 . 495 976 270 . 2618 2910 2324 605 201 989 4211 434 32 . 294 128 2832 2743 3645 5858 Explosive 24107 | . . . . . . . . . . 331 . . 676 . . 808 213 . 6364 3596 509 418 . 657 10535 Electromagnetic 1380 | . . . . . . . . . . . . . . . 1380 . . . . . . . . . . Impact . | . . . . . . . . . . . . . . . . . . . . . . . . . . Slashing 613 | . . . . . . . . . . . . . . . . . . . . 394 41 46 . 43 89 Piercing . | . . . . . . . . . . . . . . . . . . . . . . . . . . Entropic 8980 | . . . . . . . . . . . . . . . . . . . 1559 938 79 . . . 6404 Highest Corruption 32 | . . . . . . . . . . . 4 4 4 4 20 2 2 2 2 . 3 3 . 5 32 Average Corruption 3 | . . . . . . . . . . . 3 4 4 4 4 1 2 2 2 . 2 3 . 2 6 Corruption Purged . | . . . . . . . . . . . . . . . . . . . . . . . . . . Corruption Blocked . | . . . . . . . . . . . . . . . . . . . . . . . . . . Effects 177 | . . . . . . . . . . . 37 31 10 2 13 8 7 10 . . 2 19 . 7 31 Message Errors 35 | . . . . . . . . . . . 8 4 2 1 2 . 3 1 . . 1 5 . 3 5 Matter Fused 47 | . . . . . . . . . . . 9 9 3 . 5 2 3 4 . . . 5 . . 7 Heat Flow Errors 20 | . . . . . . . . . . . 4 2 2 1 . 2 1 2 . . . 2 . 1 3 Energy Discharges 25 | . . . . . . . . . . . 4 6 1 . 1 2 . 1 . . 1 2 . 1 6 Parts Rejected 4 | . . . . . . . . . . . 1 . . . . . . . . . . . . 1 2 Parts Fused 2 | . . . . . . . . . . . . . . . . . . . . . . 1 . 1 . Data Loss (minor) 24 | . . . . . . . . . . . 5 5 2 . 2 2 . 2 . . . 3 . . 3 Data Loss (major) 7 | . . . . . . . . . . . 1 1 . . 1 . . . . . . . . . 4 Misfires 4 | . . . . . . . . . . . 1 3 . . . . . . . . . . . . . Alerts 2 | . . . . . . . . . . . 2 . . . . . . . . . . . . . . Weapon Failures 7 | . . . . . . . . . . . 2 1 . . 2 . . . . . . 1 . . 1 Overload Shots 30 | . . . . . . 2 . . . 3 13 11 . . . . . . 1 . . . . . . Effects 1 | . . . . . . . . . . 1 . . . . . . . . . . . . . . . Heat Surge 1 | . . . . . . . . . . 1 . . . . . . . . . . . . . . . Overflow Damage 1649 | . . . . . . 20 2 14 . 81 64 . . . 165 107 . . 63 57 71 8 . 91 906 Projectiles 571 | . . . . . . 20 2 14 . 81 64 . . . 94 62 . . 50 . 34 . . . 150 Explosions 875 | . . . . . . . . . . . . . . . 71 45 . . 13 57 37 8 . . 644 Melee 203 | . . . . . . . . . . . . . . . . . . . . . . . . 91 112 Knockbacks 21 | . . . . . 9 5 . . . . . . . . . . . . . . 4 . . . 3 Impact 4 | . . . . . . . . . . . . . . . . . . . . . 1 . . . 3 Kinetic 16 | . . . . . 8 5 . . . . . . . . . . . . . . 3 . . . . Secondary 1 | . . . . . 1 . . . . . . . . . . . . . . . . . . . . Self-Inflicted Damage 637 | . . . . . . . . . . . . . . . 157 . . . 248 . 44 6 . . 182 Shots 17 | . . . . . . . . . . . . . . . 2 . . . 12 . 1 . . . 2 Rammed 23 | . . . . . 1 3 . . . . . 3 . . . 3 . . . . 9 4 . . . Targets Rammed 42 | . . 4 . 3 1 3 . 1 . . . 3 . . . 3 . . . . 9 6 . 3 6 Kicked 18 | . . 4 . 3 . . . . . . . . . . . . . . . . . 2 . 3 6 Crushed 1 | . . . . . . . . 1 . . . . . . . . . . . . . . . . . Highest Temperature 470 | . 72 100 . 18 79 169 134 165 . 387 250 174 207 16 72 167 . 34 . . 4 390 372 306 470 Average Temperature 88 | . 33 45 . 9 20 55 52 87 . 101 76 36 85 16 34 81 . 34 . . 3 153 132 99 104 Received Heat Transfer 2827 | . 12 100 . . 279 159 147 45 . 354 315 125 . . 9 210 30 21 120 162 144 134 20 12 429 Effects 11 | . . . . . . . . . . 3 . . . . . . . . . . . 3 1 1 3 Energy Bleed 3 | . . . . . . . . . . . . . . . . . . . . . . 2 1 . . Interference 6 | . . . . . . . . . . 3 . . . . . . . . . . . . . . 3 Short Circuit 1 | . . . . . . . . . . . . . . . . . . . . . . 1 . . . Damage (minor) 1 | . . . . . . . . . . . . . . . . . . . . . . . . 1 . Siege Activations 13 | . . . . . . . . . . . . . . . . 6 3 1 1 1 1 . . . . Total Turns 113 | . . . . . . . . . . . . . . . . 44 32 5 10 16 6 . . . . Longest Duration 19 | . . . . . . . . . . . . . . . . 18 19 5 10 16 6 . . . . Martial Activations . | . . . . . . . . . . . . . . . . . . . . . . . . . . Shielding Activations 5 | . . . . . . . . . . . . . . . . . . . . . . . . . 5 Total Turns 75 | . . . . . . . . . . . . . . . . . . . . . . . . . 75 Longest Duration 32 | . . . . . . . . . . . . . . . . . . . . . . . . . 32 Robots Disrupted . | . . . . . . . . . . . . . . . . . . . . . . . . . . Combat Hostiles . | . . . . . . . . . . . . . . . . . . . . . . . . . . Robots Corrupted 4 | . . . . . . . . . . . . . . . 1 . . . . . . . . 1 2 Combat Hostiles . | . . . . . . . . . . . . . . . . . . . . . . . . . . Parts Fried 16 | . . . . . . . . . . . . . . . 10 . . . . . . . . 2 4 Impact Corruptions 7 | . . . . . . . . . . . . . . . . . . . . . . . . 2 5 Robots Melted 19 | . . . . . . . 1 . . 2 1 . 1 . 1 3 . . . . . 4 2 1 3 Combat Hostiles 18 | . . . . . . . 1 . . 2 1 . 1 . 1 3 . . . . . 3 2 1 3 Parts Melted 122 | . . . . . . . 4 1 . 9 8 5 . . 3 8 . 2 . . . 17 10 28 27 Heat Transferred 41510 | . 225 375 . 50 . 629 1332 370 . 3430 3656 3126 755 248 1216 4958 520 37 . 175 100 5364 4586 4740 5618 Parts Sabotaged 3 | . . . . . . . . . . . . . . . . . . . . . . . . . 3 Parts Stolen . | . . . . . . . . . . . . . . . . . . . . . . . . . . Parts Stripped . | . . . . . . . . . . . . . . . . . . . . . . . . . . Power Chain Reactions 1 | . . . . . . . . . . . . . . . 1 . . . . . . . . . . Alert | -11 -10 -10 -10 -9 -8 -7 -7 -7 -7 -6 -6 -6 -6 -6 -6 -5 -5 -5 -5 -4 -4 -3 -2 -1 -1 ------- Run | Yrd Mat Min Exi Min Mat Fac Low Low Zio Pro Fac Ext Cet Arc Hub Fac Upp Upp War Pro Fac Res Res Acc Com Maximum Alert Level 5 | . . . . . 2 1 . . . . 1 4 3 1 4 2 . . . . . 1 1 2 5 Low Security (%) 57 | 100 100 100 . 100 65 75 . . . . 83 24 . . 40 . . . . . 100 83 90 33 . Level 1 25 | . . . . . 22 24 . . . . 16 30 . 100 12 33 . . . . . 16 9 61 79 Level 2 11 | . . . . . 11 . . . . . . 21 6 . 41 66 . . . . . . . 5 18 Level 3 4 | . . . . . . . . . . . . 13 93 . 1 . . . . . . . . . 1 Level 4 1 | . . . . . . . . . . . . 10 . . 4 . . . . . . . . . . Level 5 . | . . . . . . . . . . . . . . . . . . . . . . . . . . High Security . | . . . . . . . . . . . . . . . . . . . . . . . . . . Max Security . | . . . . . . . . . . . . . . . . . . . . . . . . . . Peak Influence 1941 | . 70 53 . 60 431 349 . . . . 227 1198 825 379 1326 684 . . . . 170 293 231 432 1941 Initial 664 | . . 3 . . 15 184 . . . . 227 65 664 288 121 640 . . . . 132 89 153 134 265 Average 224 | . 27 6 . 16 140 120 . . . . 128 448 770 337 360 495 . . . . 75 70 150 253 359 Influence Increases 13553 | . 105 50 . 70 651 402 305 70 . 409 862 1870 381 181 1431 1022 150 30 940 360 340 474 438 732 2280 Destroy 0b10 Robot/C 7960 | . 80 40 . 60 440 260 200 60 . 340 420 820 160 80 300 620 120 20 880 340 120 280 260 480 1580 Destroy 0b10 Robot/NC 405 | . . . . . 40 20 . . . 15 35 35 10 . 65 40 . . 15 . 10 25 10 25 60 Destroy Leader 1134 | . 20 10 . 10 108 82 30 10 . 40 116 72 . . 66 120 30 10 . 20 32 76 54 92 136 Allied During Kill 1490 | . . . . . . . . . . 14 33 757 170 80 399 12 . . . . 25 . . . . Successful Hack 93 | . 5 . . . 13 6 . . . . 21 20 . . . . . . . . . . . 21 7 Disable Machine 675 | . . . . . 15 30 . . . . 30 135 . 15 240 75 . . . . 30 . 15 30 60 Anti-Garrison Action 150 | . . . . . . . . . . . . . . . 150 . . . . . . . . . . Destroy Structure 1031 | . . . . . 5 4 . . . . 27 31 41 6 196 140 . . . . 78 18 9 54 422 Advance Influence 150 | . . . . . . . . . . . 150 . . . . . . . . . . . . . . Partial Spotted 30 | . . . . . . . . . . . 15 . . . . . . . . . . 15 . . . Lose Combat Pursuer 435 | . . . . . 30 . 75 . . . 15 . . . 15 15 . . 45 . 45 60 90 30 15 Influence Decreases 11622 | . 95 60 . 30 284 777 254 153 . 286 851 817 847 553 472 1732 478 290 108 992 380 372 485 541 765 Entered New Map 3898 | . . 7 . . 25 223 13 17 . . 46 69 523 433 228 668 222 52 10 842 78 81 119 91 151 Time Decay 5905 | . 95 53 . 30 259 514 231 136 . 266 595 478 214 40 214 434 246 238 48 100 228 286 356 410 434 Lost Part 499 | . . . . . . 40 . . . 20 20 30 10 . 10 10 10 . 50 30 34 5 10 40 180 Lost Ally 570 | . . . . . . . 10 . . . 40 240 100 80 20 20 . . . 20 40 . . . . Purge Threat 750 | . . . . . . . . . . . 150 . . . . 600 . . . . . . . . . Squads Dispatched 58 | . 2 . . . 4 6 . . . 1 6 4 . . 5 6 . . . 1 1 6 5 4 7 Investigation 11 | . . . . . . . . . . . 3 1 . . . . . . . . . 3 2 . 2 Extermination 16 | . . . . . . 3 . . . . 3 . . . 1 2 . . . . 1 . . 3 3 Reinforcement 15 | . 2 . . . 2 . . . . . . . . . 1 1 . . . . . 3 3 1 2 Assault 9 | . . . . . 1 . . . . 1 . 3 . . 3 . . . . 1 . . . . . Garrison 7 | . . . . . 1 3 . . . . . . . . . 3 . . . . . . . . . Intercept . | . . . . . . . . . . . . . . . . . . . . . . . . . . Searches Triggered . | . . . . . . . . . . . . . . . . . . . . . . . . . . Construction Impeded 2 | . . . . . 1 . . . . . . . . . . . . . . . . . . 1 . Haulers Reinforced 4 | . . . . . . . . . . . . . . . 1 1 . . . . . 1 1 . . Active Scanning Responses . | . . . . . . . . . . . . . . . . . . . . . . . . . . Cargo Convoy Interrupts . | . . . . . . . . . . . . . . . . . . . . . . . . . . Stealth | -11 -10 -10 -10 -9 -8 -7 -7 -7 -7 -6 -6 -6 -6 -6 -6 -5 -5 -5 -5 -4 -4 -3 -2 -1 -1 --------- Run | Yrd Mat Min Exi Min Mat Fac Low Low Zio Pro Fac Ext Cet Arc Hub Fac Upp Upp War Pro Fac Res Res Acc Com Distress Signals 26 | . . . . . 1 . . . . . . 2 2 . . . . . 2 . 1 7 3 1 7 Communications Jammed . | . . . . . . . . . . . . . . . . . . . . . . . . . . Distress Signals . | . . . . . . . . . . . . . . . . . . . . . . . . . . Times Spotted 626 | . 7 13 . 3 32 14 15 3 . 20 27 38 9 4 22 25 6 7 68 18 23 29 20 40 183 Peak Tracking Total 110 | . 3 8 . 3 5 4 5 3 . 7 6 12 5 2 11 5 3 4 15 11 13 7 5 9 110 Tactical Retreats 24 | . . 1 . . 2 . 3 . . . 1 . . . 1 1 . . 2 . 1 3 6 2 1 Traps | -11 -10 -10 -10 -9 -8 -7 -7 -7 -7 -6 -6 -6 -6 -6 -6 -5 -5 -5 -5 -4 -4 -3 -2 -1 -1 ------- Run | Yrd Mat Min Exi Min Mat Fac Low Low Zio Pro Fac Ext Cet Arc Hub Fac Upp Upp War Pro Fac Res Res Acc Com Traps Triggered 8 | . . . . . . . . . . . . 1 . . 2 2 . . . . . 1 . 2 . Indirectly 1 | . . . . . . . . . . . . . . . 1 . . . . . . . . . . Trap Hack Attempts . | . . . . . . . . . . . . . . . . . . . . . . . . . . Triggered . | . . . . . . . . . . . . . . . . . . . . . . . . . . Disarmed . | . . . . . . . . . . . . . . . . . . . . . . . . . . Reprogrammed . | . . . . . . . . . . . . . . . . . . . . . . . . . . Reused . | . . . . . . . . . . . . . . . . . . . . . . . . . . Traps Extracted . | . . . . . . . . . . . . . . . . . . . . . . . . . . Installed . | . . . . . . . . . . . . . . . . . . . . . . . . . . Triggered . | . . . . . . . . . . . . . . . . . . . . . . . . . . Machines | -11 -10 -10 -10 -9 -8 -7 -7 -7 -7 -6 -6 -6 -6 -6 -6 -5 -5 -5 -5 -4 -4 -3 -2 -1 -1 ---------- Run | Yrd Mat Min Exi Min Mat Fac Low Low Zio Pro Fac Ext Cet Arc Hub Fac Upp Upp War Pro Fac Res Res Acc Com Machines Disabled 52 | . . . . . 1 2 . . . 1 2 9 . 1 17 5 . . 3 2 2 . 1 2 4 Max in Single Turn 12 | . . . . . 1 1 . . . 1 1 1 . . 12 3 . . 1 1 2 . 1 2 2 Garrison Access 1 | . . . . . . . . . . . . . . . 1 . . . . . . . . . . Network Hub 1 | . . . . . . . . . . . . . . . 1 . . . . . . . . . . Machines Repaired . | . . . . . . . . . . . . . . . . . . . . . . . . . . Machines Dismantled . | . . . . . . . . . . . . . . . . . . . . . . . . . . Machines Sabotaged . | . . . . . . . . . . . . . . . . . . . . . . . . . . Overloaded Fab Kills . | . . . . . . . . . . . . . . . . . . . . . . . . . . Hacking | -11 -10 -10 -10 -9 -8 -7 -7 -7 -7 -6 -6 -6 -6 -6 -6 -5 -5 -5 -5 -4 -4 -3 -2 -1 -1 --------- Run | Yrd Mat Min Exi Min Mat Fac Low Low Zio Pro Fac Ext Cet Arc Hub Fac Upp Upp War Pro Fac Res Res Acc Com Machines Accessed 39 | . 2 . 1 . 2 3 . 1 1 . 5 8 . . . . . 2 5 . 3 1 2 2 1 Terminals 21 | . 2 . . . 2 3 . . . . 1 8 . . . . . . . . . 1 1 2 1 Fabricators 3 | . . . . . . . . . . . 3 . . . . . . . . . . . . . . Repair Stations 3 | . . . . . . . . . . . 1 . . . . . . . . . 1 . 1 . . Recycling Units 1 | . . . . . . . . . . . . . . . . . . . . . 1 . . . . Scanalyzers . | . . . . . . . . . . . . . . . . . . . . . . . . . . Garrison Access 1 | . . . . . . . . . . . . . . . . . . . . . 1 . . . . Total Hacks 94 | . 6 . 4 . 9 5 . 1 3 . 14 17 . . . . . 5 13 . 6 1 3 3 4 Successful 51 | . 2 . 4 . 6 2 . 1 3 . 7 3 . . . . . 5 13 . 1 . 1 2 1 Failed 43 | . 4 . . . 3 3 . . . . 7 14 . . . . . . . . 5 1 2 1 3 Catastrophic 12 | . 2 . . . 1 . . . . . 2 3 . . . . . . . . 2 . 1 1 . Database Lockouts . | . . . . . . . . . . . . . . . . . . . . . . . . . . Manual 28 | . 5 . . . 4 4 . . . . 7 1 1 . . . . . . . 3 . 1 2 . Terminals 54 | . 6 . . . 9 5 . . . . 7 17 . . . . . . . . . 1 2 3 4 Fabricators 6 | . . . . . . . . . . . 6 . . . . . . . . . . . . . . Repair Stations 3 | . . . . . . . . . . . 1 . . . . . . . . . 1 . 1 . . Recycling Units 3 | . . . . . . . . . . . . . . . . . . . . . 3 . . . . Scanalyzers . | . . . . . . . . . . . . . . . . . . . . . . . . . . Garrison Access 2 | . . . . . . . . . . . . . . . . . . . . . 2 . . . . Terminal Hacks 41 | . 1 . 4 . 4 1 . 1 3 . 4 3 . . . . . 5 13 . . . . 1 1 Record 16 | . . . 4 . . . . . . . . . . . . . . 4 8 . . . . . . Part Schematic 3 | . . . . . . . . . 3 . . . . . . . . . . . . . . . . Prototype ID Bank 6 | . . . . . 1 . . . . . 1 . . . . . . . 4 . . . . . . Open Door 6 | . . . . . . . . 1 . . . 3 . . . . . 1 1 . . . . . . Level Access Points 1 | . . . . . 1 . . . . . . . . . . . . . . . . . . . . Branch Access Points 2 | . . . . . . . . . . . 1 . . . . . . . . . . . . 1 . Alert Level 3 | . . . . . 1 1 . . . . 1 . . . . . . . . . . . . . . Unreport Threat 1 | . . . . . . . . . . . 1 . . . . . . . . . . . . . . Locate Traps 2 | . 1 . . . 1 . . . . . . . . . . . . . . . . . . . . Disengage Seal 1 | . . . . . . . . . . . . . . . . . . . . . . . . . 1 Fabricator Hacks . | . . . . . . . . . . . . . . . . . . . . . . . . . . Repair Station Hacks . | . . . . . . . . . . . . . . . . . . . . . . . . . . Recycling Unit Hacks 1 | . . . . . . . . . . . . . . . . . . . . . 1 . . . . Retrieve Components 1 | . . . . . . . . . . . . . . . . . . . . . 1 . . . . Scanalyzer . | . . . . . . . . . . . . . . . . . . . . . . . . . . Garrison Access Hacks . | . . . . . . . . . . . . . . . . . . . . . . . . . . Unauthorized Hacks 9 | . 1 . . . 2 1 . . . . 3 . . . . . . . . . . . 1 1 . Terminals 5 | . 1 . . . 2 1 . . . . . . . . . . . . . . . . . 1 . Assimilate 1 | . . . . . . 1 . . . . . . . . . . . . . . . . . . . Botnet 4 | . 1 . . . 2 . . . . . . . . . . . . . . . . . . 1 . Fabricators 2 | . . . . . . . . . . . 2 . . . . . . . . . . . . . . Liberate 2 | . . . . . . . . . . . 2 . . . . . . . . . . . . . . Repair Stations 2 | . . . . . . . . . . . 1 . . . . . . . . . . . 1 . . Patch 2 | . . . . . . . . . . . 1 . . . . . . . . . . . 1 . . Recycling Units . | . . . . . . . . . . . . . . . . . . . . . . . . . . Scanalyzers . | . . . . . . . . . . . . . . . . . . . . . . . . . . Garrison Access . | . . . . . . . . . . . . . . . . . . . . . . . . . . Data Cores Recovered 1 | . . . . . . . . . . . . . . . . . . . . . . . . 1 . Used . | . . . . . . . . . . . . . . . . . . . . . . . . . . Hacking Detections 25 | . 2 . . . 2 2 . . . . 5 6 1 . . . . . . . 2 1 1 2 1 Full Trace Events 4 | . . . . . . . . . . . 2 1 . . . . . . . . . . 1 . . Feedback Events . | . . . . . . . . . . . . . . . . . . . . . . . . . . Feedback Blocked . | . . . . . . . . . . . . . . . . . . . . . . . . . . Robot Schematics Acquired 4 | . . . . . . . . . 4 . . . . . . . . . . . . . . . . Robots Built . | . . . . . . . . . . . . . . . . . . . . . . . . . . Authchips . | . . . . . . . . . . . . . . . . . . . . . . . . . . Time . | . . . . . . . . . . . . . . . . . . . . . . . . . . Total Robot Build Rating . | . . . . . . . . . . . . . . . . . . . . . . . . . . Part Schematics Acquired 18 | . . . . . . . . . 18 . . . . . . . . . . . . . . . . Parts Built . | . . . . . . . . . . . . . . . . . . . . . . . . . . Authchips . | . . . . . . . . . . . . . . . . . . . . . . . . . . Time . | . . . . . . . . . . . . . . . . . . . . . . . . . . Total Part Build Rating . | . . . . . . . . . . . . . . . . . . . . . . . . . . Parts Repaired . | . . . . . . . . . . . . . . . . . . . . . . . . . . Time . | . . . . . . . . . . . . . . . . . . . . . . . . . . Parts Recycled . | . . . . . . . . . . . . . . . . . . . . . . . . . . Recycled Matter . | . . . . . . . . . . . . . . . . . . . . . . . . . . Retrieved Matter . | . . . . . . . . . . . . . . . . . . . . . . . . . . Retrieved Components 1 | . . . . . . . . . . . . . . . . . . . . . 1 . . . . Parts Scanalyzed . | . . . . . . . . . . . . . . . . . . . . . . . . . . Part Schematics Acquired . | . . . . . . . . . . . . . . . . . . . . . . . . . . Parts Damaged . | . . . . . . . . . . . . . . . . . . . . . . . . . . Bothacking | -11 -10 -10 -10 -9 -8 -7 -7 -7 -7 -6 -6 -6 -6 -6 -6 -5 -5 -5 -5 -4 -4 -3 -2 -1 -1 ------------ Run | Yrd Mat Min Exi Min Mat Fac Low Low Zio Pro Fac Ext Cet Arc Hub Fac Upp Upp War Pro Fac Res Res Acc Com Used RIF Installer . | . . . . . . . . . . . . . . . . . . . . . . . . . . Robots Hacked . | . . . . . . . . . . . . . . . . . . . . . . . . . . Non-combat . | . . . . . . . . . . . . . . . . . . . . . . . . . . Combat . | . . . . . . . . . . . . . . . . . . . . . . . . . . Robot Hacks Applied . | . . . . . . . . . . . . . . . . . . . . . . . . . . Relay Couplers Released 4 | . . . . . . . . . . . . . . . 4 . . . . . . . . . . Programmers 4 | . . . . . . . . . . . . . . . 4 . . . . . . . . . . Fabnet Peak Effective % . | . . . . . . . . . . . . . . . . . . . . . . . . . . Robots Rewired 20 | . . . . . . . . . . 2 . 17 . . . . . . . 1 . . . . . Allies Hacked . | . . . . . . . . . . . . . . . . . . . . . . . . . . Hacks Repelled . | . . . . . . . . . . . . . . . . . . . . . . . . . . Allies | -11 -10 -10 -10 -9 -8 -7 -7 -7 -7 -6 -6 -6 -6 -6 -6 -5 -5 -5 -5 -4 -4 -3 -2 -1 -1 -------- Run | Yrd Mat Min Exi Min Mat Fac Low Low Zio Pro Fac Ext Cet Arc Hub Fac Upp Upp War Pro Fac Res Res Acc Com Total Allies 39 | . . . . . . 1 . . . 2 . 28 5 . . . . . . 1 2 . . . . Largest Group 19 | . . . . . . 1 1 . . 2 2 19 15 13 8 1 . . . 1 2 . . . . Highest-Rated Group 753 | . . . . . . 10 8 . . 49 49 693 753 746 432 96 . . . 47 192 . . . . Highest-Rated Ally 159 | . . . . . . 10 8 . . 29 29 159 130 130 96 96 . . . 47 96 . . . . Total Orders 10 | . . . . . . . . . . . 6 1 . . . 3 . . . . . . . . . EXPLORE 1 | . . . . . . . . . . . . . . . . 1 . . . . . . . . . RETURN 9 | . . . . . . . . . . . 6 1 . . . 2 . . . . . . . . . Ally Attacks 414 | . . . . . . . . . . 15 14 208 55 14 83 6 . . . 2 17 . . . . Total Damage 9623 | . . . . . . . . . . 247 198 4821 1031 335 2106 235 . . . 61 589 . . . . Kills 70 | . . . . . . . . . . 2 4 34 6 3 16 2 . . . . 3 . . . . Allies Corrupted 2 | . . . . . . . . . . . . 1 . . 1 . . . . . . . . . . Allies Melted 1 | . . . . . . . . . . . . 1 . . . . . . . . . . . . . Intel | -11 -10 -10 -10 -9 -8 -7 -7 -7 -7 -6 -6 -6 -6 -6 -6 -5 -5 -5 -5 -4 -4 -3 -2 -1 -1 ------- Run | Yrd Mat Min Exi Min Mat Fac Low Low Zio Pro Fac Ext Cet Arc Hub Fac Upp Upp War Pro Fac Res Res Acc Com Active Infowar (turns) 410 | . . . . . . . . . . . . . . . . . . . . . 398 2 . . 10 Sensors 408 | . . . . . . . . . . . . . . . . . . . . . 398 . . . 10 Machine Analysis 2 | . . . . . . . . . . . . . . . . . . . . . . 2 . . . Robot Analysis Total . | . . . . . . . . . . . . . . . . . . . . . . . . . . Derelict Logs Recovered 8 | . . 1 . . . . 1 . 2 2 . . . . . . 1 . . 1 . . . . . Drone Launches 9 | . . . . . . . . . . . 6 1 . . . 2 . . . . . . . . . Drone Recoveries 9 | . . . . . . . . . . . 6 1 . . . 2 . . . . . . . . . Exploration | -11 -10 -10 -10 -9 -8 -7 -7 -7 -7 -6 -6 -6 -6 -6 -6 -5 -5 -5 -5 -4 -4 -3 -2 -1 -1 ------------- Run | Yrd Mat Min Exi Min Mat Fac Low Low Zio Pro Fac Ext Cet Arc Hub Fac Upp Upp War Pro Fac Res Res Acc Com Turns Passed 20741 | 69 285 482 173 158 869 1574 687 563 1510 1079 1891 1238 450 93 441 1073 523 512 1417 373 537 1891 806 982 1065 Spaces Moved 11181 | 50 192 342 143 117 374 903 397 338 727 376 951 476 190 43 215 490 282 308 796 175 278 1291 489 618 620 Core 262 | 7 . . . . . . . . . . . . . . . . . . . . 60 195 . . . Treads 7308 | . . . . . 371 903 397 338 727 376 951 476 190 43 215 490 282 308 796 175 218 52 . . . Legs 3592 | 43 192 342 143 117 3 . . . . . . . . . . . . . . . . 1025 489 618 620 Wheels . | . . . . . . . . . . . . . . . . . . . . . . . . . . Hover 19 | . . . . . . . . . . . . . . . . . . . . . . 19 . . . Flight . | . . . . . . . . . . . . . . . . . . . . . . . . . . Fastest Speed 50 | 50 120 120 120 120 120 160 160 160 160 240 160 160 160 160 160 160 160 160 160 160 50 50 118 116 116 Average Speed 151 | 110 120 120 120 120 159 160 160 160 205 240 163 166 161 160 160 160 160 160 160 160 163 112 118 117 119 Slowest Speed 240 | 120 120 120 120 120 160 160 160 160 240 240 240 240 240 160 160 160 160 160 160 160 240 200 118 179 195 Overloaded Moves . | . . . . . . . . . . . . . . . . . . . . . . . . . . Propulsion Burnouts . | . . . . . . . . . . . . . . . . . . . . . . . . . . Robots Hopped . | . . . . . . . . . . . . . . . . . . . . . . . . . . Potential Cave-ins 3 | . . . . . . . . . . . . . . . . . . . . . 3 . . . . Cave-ins Triggered . | . . . . . . . . . . . . . . . . . . . . . . . . . . Exploration Rate (%) 41 | 3 35 41 50 29 38 21 66 45 81 56 39 74 56 72 39 20 46 50 84 43 11 30 12 17 29 Regions Visited 25 Branch Regions 16 Pre-discovered Areas 6 | . . 1 1 . . . . . 2 1 . . . . . . . . . 1 . . . . . Known Exits Taken 9 | . . . . . 1 1 . . . . 1 . . . 1 1 . . . 1 1 . 1 1 . Unknown Exits Taken 16 | 1 1 1 1 1 . . 1 1 1 1 . 1 1 1 . . 1 1 1 . . 1 . . . Scrap Searched 11 | . . 1 . 1 . . 1 3 3 1 . . . . . . . 1 . . . . . . . Spaces Dug 54 | . . . . . . 2 . . . 3 6 3 . . . . . . . . 40 . . . . Terrain Destroyed 1009 | . . . . . . 4 7 2 . 38 26 15 98 6 178 75 37 3 184 75 58 26 7 14 156 Melee . | . . . . . . . . . . . . . . . . . . . . . . . . . . Projectile 187 | . . . . . . 4 7 2 . 14 26 15 4 6 25 17 10 3 4 5 4 2 7 3 29 AOE 822 | . . . . . . . . . . 24 . . 94 . 153 58 27 . 180 70 54 24 . 11 127 Terrain Rammed . | . . . . . . . . . . . . . . . . . . . . . . . . . . Walls Destroyed . | . . . . . . . . . . . . . . . . . . . . . . . . . . Machines Disabled . | . . . . . . . . . . . . . . . . . . . . . . . . . . Actions | -11 -10 -10 -10 -9 -8 -7 -7 -7 -7 -6 -6 -6 -6 -6 -6 -5 -5 -5 -5 -4 -4 -3 -2 -1 -1 --------- Run | Yrd Mat Min Exi Min Mat Fac Low Low Zio Pro Fac Ext Cet Arc Hub Fac Upp Upp War Pro Fac Res Res Acc Com Total 13806 | 61 227 384 145 127 553 993 428 354 742 476 1181 837 313 60 271 673 332 325 896 246 353 1630 638 768 793 Wait 1206 | . 20 17 1 1 101 30 13 2 1 26 124 104 81 13 31 116 37 16 25 14 20 214 76 63 60 Move 11157 | 49 191 341 142 116 373 902 396 337 726 375 950 475 189 42 214 489 281 307 795 174 278 1290 488 617 620 Hop . | . . . . . . . . . . . . . . . . . . . . . . . . . . Pick Up 140 | 6 3 2 1 1 6 9 1 3 5 1 14 3 8 1 1 6 . 1 15 . 3 11 22 7 10 Fast Attach 71 | 6 1 . . . 3 1 . . 3 . 3 . 1 . 3 3 . . 3 . 3 30 2 6 3 Attach 61 | . . 1 . . 4 5 . . . 2 2 3 2 . 1 4 1 . 2 4 8 2 4 5 11 Detach 10 | . . . . . . . . . . . . . 1 . 1 . . . 1 2 3 . . . 2 Swap 163 | . 2 2 . 2 5 7 3 2 2 9 31 5 9 . 2 7 4 . 16 1 . 20 5 13 16 Drop 151 | . 1 2 1 1 8 6 1 4 4 . 11 . 12 1 2 2 . . 20 . 17 24 11 15 8 Fire 550 | . 9 15 . 3 52 30 14 5 1 40 46 40 10 3 16 43 9 1 19 23 13 32 30 39 57 Melee . | . . . . . . . . . . . . . . . . . . . . . . . . . . Ram 7 | . . . . . . . . . . . . . . . . . . . . . 3 4 . . . Kick 18 | . . 4 . 3 . . . . . . . . . . . . . . . . . 2 . 3 6 Crush 16 | . . . . . 1 3 . 1 . . . 3 . . . 3 . . . . 5 . . . . Escape Stasis 1 | . . . . . . . . . . . . . . . . . . . . . . 1 . . . Rewire 255 | . . . . . . . . . . 23 . 204 . . . . . . . 28 . . . . . Trap . | . . . . . . . . . . . . . . . . . . . . . . . . . . Miscellaneous . | . . . . . . . . . . . . . . . . . . . . . . . . . . Route ------- -11/Scrapyard -10/Materials -10/Mines (discovered 2 exits: [*Mat] / *Exi) -10/Exiles -9/Mines -8/Materials (discovered 3 exits: *Fac x3) -7/Factory (discovered 3 exits: *Fac x2 / *Low) -7/Lower Caves -7/Lower Caves -7/Zion -6/Proximity Caves -6/Factory (discovered 8 exits: *Fac x4 / Low x2 / *Ext x2) -6/Extension (discovered 3 exits: *Fac x2 / *Cet) -6/Cetus (discovered 2 exits: *Fac / [*Arc]) -6/Archives -6/Hub_04(d) (discovered 2 exits: *Fac x2) -5/Factory (discovered 6 exits: *Fac x4 / *Upp x2) -5/Upper Caves -5/Upper Caves -5/Warlord -4/Proximity Caves -4/Factory -3/Research (discovered 3 exits: *Res / *Tes x2) -2/Research (discovered 2 exits: *Acc x2) -1/Access -1/Command History --------- Turn | Location | Event 4 | -11/Scrapyard | Discovered new exit (range 15) 70 | -11/Scrapyard | Entered Materials 313 | -10/Materials | Build established: Mutant 329 | -10/Materials | Discovered new exit (range 16) 355 | -10/Materials | Entered Mines 397 | -10/Mines | Assembled infested the area 414 | -10/Mines | Learned location of Zion (-7) 760 | -10/Mines | A weapon hastily lodged in a ceiling crevice suddenly fell to the ground 770 | -10/Mines | Discovered new exit (range 7) 833 | -10/Mines | Deemed a non-threat by the Exiles lab entrance 833 | -10/Mines | Discovered new exit (range 5) 837 | -10/Mines | Entered Exiles 867 | -10/Exiles | Met 8R-AWN 889 | -10/Exiles | Met EX-HEX 920 | -10/Exiles | Met EX-BIN 937 | -10/Exiles | Met EX-DEC 998 | -10/Exiles | Discovered new exit (range 12) 1010 | -10/Exiles | Entered Mines 1136 | -9/Mines | Discovered new exit (range 7) 1168 | -9/Mines | Entered Materials 1168 | -8/Materials | Evolved 4 slots: Propulsion x1, Utility x2, Weapon x1 1191 | -8/Materials | Identified exit to Factory 1362 | -8/Materials | Found Powered Armor 1366 | -8/Materials | Found Powered Armor 1369 | -8/Materials | Found Powered Armor 1636 | -8/Materials | Build established: Tank 1926 | -8/Materials | Garrison activated, responded to threat 1968 | -8/Materials | First assault squad dispatched 2037 | -8/Materials | Entered Factory 2037 | -7/Factory | Evolved 2 slots: Utility x1, Weapon x1 2100 | -7/Factory | Lost 4 parts (1p1n1u1w) 2363 | -7/Factory | Build established: Gunner 2491 | -7/Factory | Discovered new exit (range 7) 2654 | -7/Factory | Discovered new exit (range 15) 3417 | -7/Factory | Discovered new exit (range 13) 3444 | -7/Factory | Identified exit to Lower Caves 3611 | -7/Factory | Entered Lower Caves 3611 | -7/Lower Caves | Accompanied by 1 ally 3982 | -7/Lower Caves | Attracted the attention of an 0b10 checkpoint 4011 | -7/Lower Caves | Encountered a Warlord checkpoint 4074 | -7/Lower Caves | Learned Factory trap positions 4286 | -7/Lower Caves | Discovered new exit (range 3) 4298 | -7/Lower Caves | Entered another Lower Caves area 4851 | -7/Lower Caves | Discovered new exit (range 6) 4861 | -7/Lower Caves | Entered Zion 4908 | -7/Zion | Acquired unknown access codes intercepted by a Zionite 4928 | -7/Zion | Given A8's code to call for help 5541 | -7/Zion | Found Prototype Device 5541 | -7/Zion | Identified Bomb Factory No. 2 5795 | -7/Zion | Learned location of Extension (-6) 5990 | -7/Zion | Learned 8 Factory zone layouts 6033 | -7/Zion | Given the Hacking Drone Bay 6033 | -7/Zion | Found Prototype Device 6335 | -7/Zion | Discovered new exit (range 16) 6371 | -7/Zion | Entered Proximity Caves 6373 | -6/Proximity Caves | Spotter reported a threat 6424 | -6/Proximity Caves | Spotted B-75 Beast 6436 | -6/Proximity Caves | Destroyed B-75 Beast 6714 | -6/Proximity Caves | Build established: Tank 7065 | -6/Proximity Caves | Attracted the attention of an 0b10 outpost 7138 | -6/Proximity Caves | Destroyed 7 combat bots 7395 | -6/Proximity Caves | Discovered new exit (range 8) 7397 | -6/Proximity Caves | Learned Factory security intel 7450 | -6/Proximity Caves | Entered Factory 7450 | -6/Factory | Accompanied by 2 allies 7450 | -6/Factory | Evolved 2 slots: Propulsion x1, Utility x1 7451 | -6/Factory | Identified exit to Lower Caves 7451 | -6/Factory | Identified exit to Factory 7452 | -6/Factory | Loaded intel: 82 trap records 7764 | -6/Factory | Found Prototype Launcher 7764 | -6/Factory | Identified Scatter Rocket Array 7768 | -6/Factory | Found Scatter Rocket Array 7908 | -6/Factory | Identified Hacking Drone Bay 7970 | -6/Factory | Identified exit to Extension 8303 | -6/Factory | Discovered exit to Factory (range 11) 9341 | -6/Factory | Entered Extension 9409 | -6/Extension | Rescued A7 9447 | -6/Extension | Rescued a captive Derelict 9823 | -6/Extension | Rescued a captive Derelict 9854 | -6/Extension | Build established: Commander-Tank 9910 | -6/Extension | Rescued a captive Derelict 9936 | -6/Extension | Rescued a captive Derelict 9938 | -6/Extension | Rescued a captive Derelict 9950 | -6/Extension | Spotted B-75 Beast 9968 | -6/Extension | Spotted B-75 Beast 9981 | -6/Extension | Destroyed B-75 Beast 9991 | -6/Extension | Allies destroyed B-75 Beast 10021 | -6/Extension | Lost 4 allies 10041 | -6/Extension | First assault squad dispatched 10080 | -6/Extension | Rescued a captive Derelict 10081 | -6/Extension | Rescued a captive Derelict 10267 | -6/Extension | Rescued a captive Derelict 10275 | -6/Extension | Lost 4 allies 10288 | -6/Extension | Rescued a captive Derelict 10352 | -6/Extension | Rescued a captive Derelict 10493 | -6/Extension | Lost 3 allies 10515 | -6/Extension | Discovered new exit (range 6) 10579 | -6/Extension | Entered Cetus 10579 | -6/Cetus | Accompanied by 14 allies (A7) 10584 | -6/Cetus | Acquired a Cetus Manufacturing Module code from A7 10601 | -6/Cetus | Spotted Cetus Guard 10602 | -6/Cetus | Spotted Cetus Guard 10604 | -6/Cetus | Spotted Cetus Guard 10604 | -6/Cetus | Spotted Cetus Guard 10610 | -6/Cetus | Allies destroyed Cetus Guard 10615 | -6/Cetus | Destroyed Cetus Guard 10617 | -6/Cetus | Allies destroyed Cetus Guard 10622 | -6/Cetus | Allies destroyed Cetus Guard 10684 | -6/Cetus | Started Cetus Manufacturing Module 10703 | -6/Cetus | Discovered new exit (range 15) 10709 | -6/Cetus | Manufactured an Enhanced Grunt 10734 | -6/Cetus | Manufactured an Enhanced Grunt 10759 | -6/Cetus | Manufactured an Enhanced Grunt 10765 | -6/Cetus | Spotted Cetus Guard 10765 | -6/Cetus | Spotted Cetus Guard 10770 | -6/Cetus | Destroyed Cetus Guard 10771 | -6/Cetus | Spotted Cetus Guard 10771 | -6/Cetus | Spotted Cetus Guard 10774 | -6/Cetus | Allies destroyed Cetus Guard 10777 | -6/Cetus | Destroyed Cetus Guard 10784 | -6/Cetus | Manufactured an Enhanced Grunt 10790 | -6/Cetus | Allies destroyed Cetus Guard 10808 | -6/Cetus | Discovered exit to Factory (range 16) 10809 | -6/Cetus | Manufactured an Enhanced Grunt 10814 | -6/Cetus | Lost 4 allies 10816 | -6/Cetus | Met Revision 17 10886 | -6/Cetus | Found Prototype Device 10886 | -6/Cetus | Identified Exp. Thermal Shield 11029 | -6/Cetus | Entered Archives 11029 | -6/Archives | Accompanied by 13 allies (A7) 11074 | -6/Archives | Found Exp. Thermal Shield 11086 | -6/Archives | Discovered new exit (range 16) 11097 | -6/Archives | Lost 4 allies 11122 | -6/Archives | Entered Hub_04(d) 11122 | -6/Hub_04(d) | Accompanied by 8 allies 11122 | -6/Hub_04(d) | Discovered exit to Factory (range 12) 11278 | -6/Hub_04(d) | Discovered exit to Factory (range 8) 11472 | -6/Hub_04(d) | First assault squad dispatched 11543 | -6/Hub_04(d) | Network Hub disabled 11559 | -6/Hub_04(d) | System corruption reached 10% 11563 | -6/Hub_04(d) | Entered Factory 11563 | -5/Factory | Accompanied by 1 ally 11563 | -5/Factory | Evolved 2 slots: Power x1, Utility x1 11569 | -5/Factory | Murdered 4 allies 11650 | -5/Factory | Found Launcher Loader 11716 | -5/Factory | Garrison activated, responded to threat 11816 | -5/Factory | Identified exit to Upper Caves 11825 | -5/Factory | Identified exit to Factory 11848 | -5/Factory | Build established: Scavenger-Tank 12000 | -5/Factory | Destroyed 7 combat bots 12636 | -5/Factory | Entered Upper Caves 12894 | -5/Upper Caves | Learned 4 Factory zone layouts 13124 | -5/Upper Caves | Discovered new exit (range 15) 13159 | -5/Upper Caves | Entered another Upper Caves area 13453 | -5/Upper Caves | Entered an active Warlord outpost 13482 | -5/Upper Caves | Learned Armory stockpile data 13482 | -5/Upper Caves | Learned Factory security intel 13652 | -5/Upper Caves | Discovered new exit (range 10) 13671 | -5/Upper Caves | Entered Warlord 13727 | -5/Warlord | System corruption cleaned by Quarantine Array 14039 | -5/Warlord | Learned Research trap positions 14039 | -5/Warlord | Learned 4 Access zone layouts 14039 | -5/Warlord | Learned 4 Command zone layouts 14042 | -5/Warlord | Learned Quarantine security intel 14042 | -5/Warlord | Learned Armory garrison access intel 14042 | -5/Warlord | Learned Research fabricator intel 14102 | -5/Warlord | Met Warlord 14127 | -5/Warlord | Warlord's base attacked by MAIN.C 14295 | -5/Warlord | Found Prototype Special Weapon 14295 | -5/Warlord | Identified RU-N14's Throwing Claymores v3 14308 | -5/Warlord | Found RU-N14's Throwing Claymores v3 14311 | -5/Warlord | Found RU-N14's Throwing Claymores v3 14313 | -5/Warlord | Found RU-N14's Throwing Claymores v3 14316 | -5/Warlord | Found RU-N14's Throwing Claymores v3 14441 | -5/Warlord | Found Prototype Device 14441 | -5/Warlord | Identified Thermal Barrier 14457 | -5/Warlord | Found Prototype Processor 14457 | -5/Warlord | Identified Exp. Targeting Computer 14474 | -5/Warlord | Found Prototype Reactor 14477 | -5/Warlord | Warlord forces counterattacked 14597 | -5/Warlord | Found Prototype Energy Gun 14597 | -5/Warlord | Identified Vortex Shotgun 14603 | -5/Warlord | Found Prototype Energy Cannon 14603 | -5/Warlord | Identified Vortex Cannon 14606 | -5/Warlord | Found Vortex Cannon 14609 | -5/Warlord | Found Prototype Energy Gun 14609 | -5/Warlord | Identified Vortex Rifle 14613 | -5/Warlord | Found Vortex Rifle 14617 | -5/Warlord | Found Prototype Launcher 14617 | -5/Warlord | Identified Vortex Catalyst Activator 14802 | -5/Warlord | Warlord base infiltrated, sounded retreat 14817 | -5/Warlord | Spotted Executioner 14836 | -5/Warlord | Destroyed Executioner 14855 | -5/Warlord | Lost 4 allies 14937 | -5/Warlord | Spotted Striker 14967 | -5/Warlord | Destroyed Striker 14984 | -5/Warlord | Spotted Executioner 14989 | -5/Warlord | Spotted Striker 14995 | -5/Warlord | Destroyed Executioner 15016 | -5/Warlord | Destroyed 24 combat bots 15023 | -5/Warlord | Lost 9 allies 15032 | -5/Warlord | Spotted Executioner 15072 | -5/Warlord | Destroyed 21 combat bots 15072 | -5/Warlord | Discovered new exit (range 12) 15088 | -5/Warlord | Entered Proximity Caves 15089 | -4/Proximity Caves | Lost 3 parts (1u2w) 15256 | -4/Proximity Caves | Attracted the attention of an 0b10 outpost 15299 | -4/Proximity Caves | Destroyed 13 combat bots 15437 | -4/Proximity Caves | Discovered exit to Factory (range 12) 15447 | -4/Proximity Caves | Learned location of Testing (-3) 15461 | -4/Proximity Caves | Entered Factory 15461 | -4/Factory | Evolved 2 slots: Propulsion x1, Utility x1 15462 | -4/Factory | Identified exit to Research 15652 | -4/Factory | Build established: Mutant 15748 | -4/Factory | Enhanced Grunt warped into view, answering call for help 15756 | -4/Factory | Enhanced Grunt warped into view, answering call for help 15998 | -4/Factory | Entered Research 15998 | -3/Research | Evolved 2 slots: Propulsion x1, Weapon x1 15999 | -3/Research | Identified exit to Testing 16000 | -3/Research | Loaded intel: 59 trap records 16001 | -3/Research | Loaded intel: 4 fabricator locations 16165 | -3/Research | Spotted B-86 Titan 16198 | -3/Research | Revision forces began assault on 0b10 16266 | -3/Research | Met up with Revision 17++ 16301 | -3/Research | Lost 5 allies 16317 | -3/Research | Identified Vortex Chain Reactor 16535 | -3/Research | Found Prototype Hackware 16535 | -3/Research | Identified Exp. Hacking Suite 16613 | -3/Research | Build established: Scavenger-Tank 16698 | -3/Research | Research terminal network offline 17157 | -3/Research | Found Launcher Loader 17158 | -3/Research | Spotted Striker 17201 | -3/Research | Lost 4 allies 17272 | -3/Research | Discovered exit to Testing (range 4) 17552 | -3/Research | Spotted Striker 17570 | -3/Research | Destroyed Striker 17849 | -3/Research | Discovered new exit (range 15) 17882 | -3/Research | Spotted Striker 17889 | -3/Research | Entered another Research area 17889 | -2/Research | Warlord forces began assault on 0b10 17889 | -2/Research | Evolved 2 slots: Utility x2 17890 | -2/Research | Identified exit to Access 17944 | -2/Research | Spotted B-90 Cyclops 17999 | -2/Research | Research machine network offline 18177 | -2/Research | Borebot progress halted 18518 | -2/Research | Spotted Executioner 18525 | -2/Research | Spotted Executioner 18529 | -2/Research | Destroyed Executioner 18537 | -2/Research | Destroyed Executioner 18572 | -2/Research | Met up with Warlord 18618 | -2/Research | Spotted Striker 18619 | -2/Research | Spotted Striker 18624 | -2/Research | Destroyed Striker 18628 | -2/Research | Destroyed Striker 18675 | -2/Research | Discovered exit to Access (range 11) 18695 | -2/Research | Entered Access 18695 | -1/Access | Evolved 2 slots: Power x1, Utility x1 19068 | -1/Access | Destroyed 7 combat bots 19261 | -1/Access | Identified exit to Command 19544 | -1/Access | Build established: Hacker-Tank 19665 | -1/Access | Spotted B-99 Colossus 19665 | -1/Access | Spotted B-99 Colossus 19677 | -1/Access | Entered Command 20035 | -1/Command | Disengaged cave seal 20036 | -1/Command | Welcomed Warlord to Command 20160 | -1/Command | Lost 4 allies 20186 | -1/Command | Build established: Scavenger-Tank 20568 | -1/Command | Spotted B-99 Colossus 20714 | -1/Command | P-80 Master assimilated allied KF-VY7(M) 20717 | -1/Command | System corruption reached 10% 20732 | -1/Command | Warlord destroyed during the assault 20738 | -1/Command | Core integrity fell below 50% 20739 | -1/Command | System corruption reached 30% 20741 | -1/Command | Core integrity fell below 20% 20742 | -1/Command | Destroyed by P-80 Master with Gamma Rifle Last Messages --------------- 20740_ B-74 Champion destroyed. 20740_ P-80 Master destroyed. 20740_ Destroyed Imp. Antigrav System. 20740_ Destroyed Lgt. Antimatter Reactor. 20740_ Destroyed Xenon Bombardment Thruster. 20740_ S-43 Plague destroyed. 20740_ G-73 Enforcer destroyed. 20740_ S-43 Plague destroyed. 20740_ C-30 ARC bursts open, deploying its payload. 20740_ P-80 Master unfolds itself. 20741_ Slug penetrates Earth. 20741_ Centrium Leg destroyed. 20741_ P-80 Master reactivates. 20742_ R-10 Processor collects Myomer Leg. 20742_ P-80 Master resets P-80 Master, system corruption cleaned. 20742_ P-80 Master destroyed. 20742_ Slug penetrates Earth. 20742_ Penetrated by Slug. Map ----- +----------------------------------------------------+ | ?????????????????????????????????????????????????? | | ?????????????????????????????????????????????????? | | ?????????????????????????????????????????????????? | | ?????????????????????????????????????????????????? | | ?????????????????????????????????????????????????? | | ?????????????????????????????????????????????????? | | ?????????????????????????????????????????????????? | | ?????????????????????????????????????????????????? | | ??????????????????????????????????????????????#### | | ?????????????????????????????????????######???# | | ??????????????????????? %[ ??????????# ##### | | ??????????????????????? [ ??????????# | | ???????????????????????h% ??????????# | | ??????????????????????? s=%??????????# #### | | ???????????????????????hhh[??????????## ##??# | | ???????????????????????h%%%???????????# #???# | | ??????????????????#????=%s=??????###??# #???# | | ??????????????????#h???#hs ??????# #??# #???# | | ??????????????????#hh??# s#??????# #??# #???# | | ??????????????????#hh#?#s ###???##"##?# #???# | | ?????????????#??### ;## # #???# * #?# #???# ! | | ???????????### # ; ; # # #???# % #?# #???# | | ???????????# ; ; ; ; ##??# #?# #???# | | ???????##### ;!g[ ; =;;##### #### #???# | | ???????# = [p !s= = %%! #???# | | ???????# =[p=%=*% %@ /% #???# | | ???????# x%%p==p % % %*% [% % #???# | | ???????# g%%g!%% [ = %%= =%=! R ! #???# | | ???????##//# s% !p % ;;;;;####% ]%* ##?# | | ???????????# p p%= ; ##[!=# = ! "## | | ???????????? p %!p % ; # # # | | ???????????? x [ gp ; ; ## # ### | | ????????????# g x#gg%#% ; #?######?# | | ?????????????#g gg g % ??????###+#####" | | ????????????# ##%!p% gg####??????# ? ## | | ????????????# g %=x % ##????????# ?# | | ????????????# % %g #????????# ?# | | ????????????# % gg #????????# ?# # | | ????????????%" = #????????# ## # | | ???????????"# #????????# # | | ????????????# #????????# +=[T | | ??????????????? #????????# #= " | | ???????????????## ########????????# #%%!= | | ??????????????? #?# #??# #??????????# ?##%## | | ??????????????? #?# #??# #??????????# ??#[## | | ??????????????? ### #### #??????????# ???#%%# | | ??????????????? #??????????# ??##[## | | ???????????????###########??????????# ???#"!## | | ????????????????# #???????????????# ???#" "# | | ????????????????# #???????????????# ????## ## | +----------------------------------------------------+ Best States ------------- Heat Dissipation 154 Energy Generation 101 Energy Capacity 1400 Matter Stores 300 Matter Capacity 300 Sight Range 16 Robot Scan Range 18 Terrain Scan Density 10 Power Amplification 30 Base Temperature (-) 150 Armor Coverage 850 Resistance: KI 30 Resistance: TH 50 Power Shielding 90 Weapon Cycling 30 Phase Shifting 15 Evasion (%) 97 Targeting Accuracy 18 Launcher Accuracy 40 Recoil Reduction 4 Energy Filtering 30 Particle Charging 20 Offensive Hacking 26 Defensive Hacking 12 Item Schematics ----------------- Imp. Hardlight Generator | -7/Zion | Archive Energy Filter | -7/Zion | Archive Point Defense System | -7/Zion | Archive Antigrav System | -7/Zion | Archive Recalibrator | -7/Zion | Archive Imp. Target Analyzer | -7/Zion | Archive Lyr. Light Armor Plating | -7/Zion | Archive Imp. Proton Missile Launcher | -7/Zion | Archive Core Analyzer | -7/Zion | Archive Adv. Sensor Array | -7/Zion | Archive Component Analysis Suite | -7/Zion | Archive Imp. Field Recycling Unit | -7/Zion | Archive Adv. Melee Analysis Suite | -7/Zion | Archive Hvy. Plasma Cannon | -7/Zion | Archive Imp. Titanium Leg | -7/Zion | Archive Riot Gun | -7/Zion | Free Beamcaster | -7/Zion | Free Hvy. Beamcaster | -7/Zion | Free Robot Schematics ------------------ B-48 Gladiator | -7/Zion | Archive M-28 Smith | -7/Zion | Archive S-27 Virus | -7/Zion | Archive D-83 Annihilator | -7/Zion | Archive Fabricated ------------ Nothing Repaired ---------- Nothing Alien Tech Used ----------------- None Achievements -------------- Boltbath Challenges ------------ None Game ------ Seed ImprovedCannonShield Manual? 0 Play Time 03:16:51 Cumulative 257.4 hours Start 2025.05.27 @ 22:58:37 End 2025.05.28 @ 02:15:15 Sessions 1 Manual Loads 0 Difficulty Rogue Special Mode None Game No. 130 Rogue 130 Adventurer 0 Explorer 0 Win Type - Total 4 Types 4/0/0/0/0/0/0/0/0/0 Lore% 74 Gallery% 76 Achievement% 63 Wizard Run 0 Options --------- Layout 1 ASCII 0 Keyboard 0 Movement Mouse Keybinds 0 Fullscreen 1 Font 24/Smallcaps Map View 50x35 Zoom Use 0% Tactical HUD 1 Map Filters NONE Filters NONE Steam 1 RUN: 17dd04a1-5b00-464a-b554-75d9aa32c2b5